{"text_format":"1","workbook":"xlsx","n_sheets":3,"sheets":["Sheet1","Sheet2","Sheet3"],"not_rendered":{"charts":0,"images":53,"macros":1,"external_links":0,"defined_names":0,"comments":0,"pivot_tables":0},"unopened":[],"bounds":{"document_bytes":16777216,"sheet_cells":100000,"rows_first":2000,"rows_last":500,"rows_between":2000,"halvings":0,"cell_chars":16384,"cell_head_chars":4096},"cells_cut":0,"cells_raw":0,"read":"whole","date_system":"1900"}

{"sheet":"Sheet1","index":0,"n_rows":57,"n_cols":10,"rows_kept":57,"cut":false,"hidden":false,"merged":[[7,0,7,6],[53,5,53,6],[71,2,71,3],[20,0,20,6],[41,0,41,6],[30,0,30,4],[29,0,29,6]]}
["ا / ناصر عبد الباري","الصف الثالث الإعدادي"]
[]
[]
[]
[]
[]
["أولا القصة "]
[" دخل الحاجب على الملك نجم الدين, وهو في مخدعه بقلعة دمشق, قد برحت به العلة وألزمته الفراش واستأذن لتاجر كبير من تجار جزيرة صقلية, أبى أن يصرح بما جاء من أجله...\""]
[]
["1ـــ جمع (ملك)               ",null,null,"ملائكة ",null,"أملاك ",null,"ملوك ",false,{"$f":"IF(I10,1,0)","v":0}]
["مرادف ( أبى ) ",null,null," تكبر ",null,"ولى ",null,"امتنع ",false,{"$f":"IF(I11,1,0)","v":0}]
["قد برحت به العلة       ",null,null," تركته ",null,"أجهدته",null,"صاحبته",false,0]
["2ـــ كيف انتقل نجم الدين من دمشق إلى أشموم طناح ؟",null,null,"على ظهر خيله ",null,"بواسطة الحمام ",null,"على محفة",false,0]
["3- اختر :"]
["* هذا الرجل تاجر من تجار صقلية .",null,null,"صح ",null,"خطأ",null,null,false,{"$f":"IF(I15,1,0)","v":0}]
["* ــ الخبر الذي جاء به هذا التاجر استعداد لويس التاسع للهجوم على مصر  .",null,null,"صح ",null,"خطأ",null,null,false,{"$f":"IF(I16,1,0)","v":0}]
["* ــ اختار لويس التاسع الاسكندرية ليحتلها  .",null,null,"صح ",null,"خطأ",null,null,false,0]
["* ــ تم اعدام ( فخر الدين بن شيخ الشوخ لهروبه من المعركة ) .",null,null,"صح ",null,"خطأ",null,null,false,0]
[]
["من نص ( سفينة نوح )   :"]
[" وَقَالَ ارْكَــبُواْ فِيهَا بِسْمِ اللَّهِ مَجْرَاهَا وَمُرْسَاهَا إِنَّ رَبِّي لَغَفُورٌ رَّحِيمٌ *وَهِيَ تَجْرِي بِهِمْ فِي مَوْجٍ كَالْجِبَالِ وَنَادَى نُوحٌ ابْنَهُ وَكَانَ فِي مَعْزِلٍ يَا بُنَيَّ ارْكَب مَّعَنَا وَلاَ تَكُن مَّعَ الْكَافِرِينَ )"]
[" ا   -  هات من الفقرة ","* كلمة مرادفها ( مكان بعيد )",null,null,null,null,null,null,null,{"$f":"IF(E22=\"معزل\",1,0)","v":0}]
[null,"* وكلمة جمعها ( مراسيها )",null,null,null,null,null,null,null,{"$f":"IF(E23=\"مرساها\",1,0)","v":0}]
[null,"وكلمة مضادها ( المؤمنين ) ",null,null,null,null,null,null,null,{"$f":"IF(E24=\"الكافرين\",1,0)","v":0}]
["ب  أهل السفينه هم ؟ ",null,"المؤمنين والحيوانات والطيور زوجين",null,null,"المؤمنين فقط",null,"كل من أراد الركوب",false,{"$f":"IF(I25,1,0)","v":0}]
["ج -( ولا تكن مع الكافرين ) أسلوب .....",null,null,"أمر للنصح والارشاد",null,"نفي للالتزام",null,"نهي للنصح والارشاد",false,{"$f":"IF(I26,1,0)","v":0}]
[]
["القراءة المتعددة"]
["غذاء ودواء"]
["یشهد العالمُ منذ سنواتٍ اهتماماً متزایداً بالنباتات الطبیة، بعد أن تأكَّد أنَّ للتداوي بالنباتات فاعلیَّةً لا تقلُّ عن فاعلیةِ الأدویةِ الكیمیائیة ، بل تفوقُها أحیاناً، فقد تطَوَّر الیوم تَبَعاً للتطورِ الذي حدث في السنواتِ الأخیرةِ في میادینِ الزراعةِ والكیمیاءِ وعلمِ دراسةِ الأحیاءِ."]
[]
["ا   - أكمل "]
[null," مضاد ( اهتماما )     ",null,null,null,null,null,null,null,{"$f":"IF(C33=\"اهمالا\",1,0)","v":0}]
[null,"جمع \" العالم \"",null,null,null,null,null,null,null,{"$f":"IF(C34=\"العوالم\",1,0)","v":0}]
[null,"مرادف \" فاعلية \" ",null,null,null,null,null,null,null,{"$f":"IF(OR(C35=\"فائدة\",C35=\"اجابية\"),1,0)","v":0}]
["يشهد العالم",null,null,null,null,null,null,null,null,{"$f":"IF(OR(B36=\"اهتماما متزايد بالنباتات الطبية \",B36=\"اهتمام متزايد بالنباتات الطبية\"),2,0)","v":0}]
[]
["على ید من رفع مستوى التداوي بالنباتات ؟",null,"الرومان ",null,"القدماء المصريون",null,"البابليون والآشوريون",null,false,{"$f":"IF(I38,1,0)","v":0}]
["من أهم العلماء العرب الذين برعوا في الطب",null,"نيوتين",null,"ابن سينا وبن البيطار",null,"الحسن بن الهيثم",null,false,{"$f":"IF(I39,1,0)","v":0}]
[]
["ثالثا: القواعد:-"]
[" من طبيعة الأمة العربية الصمود أمام الغزو والأطماع الاستعمارية ،ولن تقصر في استعادة الحقوق المسلوبة حاملة المدفع وغصن الزيتون ،ولن تقف مقهورة الإرادة أمام المعتدى رغم إراقة الدماء لأن الحق أقوى من غيره ،وعلى المجتمع الدولي أن يكون نصير الشرفاء 0 "]
["ا- اختر الإعراب الصحيح لما تحته خط "]
[null,"الصمود","خبر مرفوع",null,"مبتدأ مرفوع",null,"مفعول به منصوب",null,false,{"$f":"IF(I44,1,0)","v":0}]
[null,"تقتصر","فعل مضارع منصوب",null,"فعل ماض مبني ",null,"فعل مضارع مرفوع ",null,false,{"$f":"IF(I45,1,0)","v":0}]
[null,"أقوى","خبر مرفوع",null,"فاعل مرفوع",null,"خبر إن مرفوع",null,false,0]
["ج- استخرج "]
[null,"اسم فاعل من فعل ثلاثي",null,null,null,null,null,null,null,{"$f":"IF(OR(C48=\"حاملة\",C48=\"حامله\"),1,0)","v":0}]
[null,"اسم فاعل من فعل غير ثلاثي",null,null,null,null,null,null,null,{"$f":"IF(OR(C49=\"المعتدي\",C49=\"المعتدى\"),1,0)","v":0}]
[null,"اسم مفعول",null,null,null,null,null,null,null,{"$f":"IF(OR(C50=\"المسلوبة\",C50=\"مقهورة\"),1,0)","v":0}]
[null,"اسم تفضيل ",null,null,null,null,null,null,null,{"$f":"IF(OR(C51=\"أقوى\",C51=\"اقوى\"),1,0)","v":0}]
["د- تخير الصواب","اسم المفعول من ( يستجيب )",null,null,"(  مستجيب","مستجاب",null,"مستوجب   )",false,{"$f":"IF(I52,1,0)","v":0}]
[null,"( المدفع ) نوعه من المشتقات",null,null,"(     اسم فاعل ","اسم مفعول",null,"اسم آله )",false,{"$f":"IF(I53,1,0)","v":0}]
[null,"اسم المكان من الفعل ( وقف ) ",null,null,"(    واقف","موقِف",null,"موقَف    )",false,0]
[]
[]
["اسم الطالب",null,"الدرجة",null,"من 30",null,"التقدير",{"$f":"IF(D57>=28,\"ممتاز\",IF(D57>=25,\"جيد جدا\",IF(D57>=20,\"جيد\",IF(D57>=15,\"مقبول\",\"راسب\"))))","v":"راسب"}]

{"sheet":"Sheet2","index":1,"n_rows":0,"n_cols":0,"rows_kept":0,"cut":false,"hidden":false,"merged":[]}

{"sheet":"Sheet3","index":2,"n_rows":0,"n_cols":0,"rows_kept":0,"cut":false,"hidden":false,"merged":[]}